Cogmind - Beta 14 @@@ ROGUE MODE // 2024.08.10 @ 14:46:10 Player: Sgt. SmokeWeed Result: Destroyed by G-50 Soldier with Heavy Laser Performance ------------- Evolutions (1) 500 Regions Visited (6) 1200 Robots Destroyed (35) 175 Value Destroyed (694) 694 Prototype IDs (23) 460 Alien Tech Used (0) 0 Bonus (88) 88 TOTAL SCORE: 3117 Bonus ------- Follower Combat Kills 105 Friendly Fire -17 Cogmind --------- Core Integrity 0/400 Matter 299/300 Energy 99/100 System Corruption 0% Temperature Cool (9) Movement Core (50) Location -8/Mines Parts ------- > --- POWER (1) -------- (None) > --- PROPULSION (2) --- (None) > --- UTILITY (4) ------ (None) > --- WEAPON (2) ------- Light Assault Rifle > --- INVENTORY (5) ---- XL Autogun Array Peak State ------------ > --- POWER ------------ Improved Ion Engine > --- PROPULSION ------- Aluminum Leg Carbon-fiber Leg > --- UTILITY ---------- (None) > --- WEAPON ----------- Spread Laser Spread Laser > --- INVENTORY -------- XL Autogun Array [Rating: 13] Favorites ----------- Power Improved Ion Engine Engine Improved Ion Engine Propulsion Light Treads Treads Light Treads Leg Carbon-fiber Leg Utility Heat Sink Device Heat Sink Weapon Spread Laser Energy Gun Spread Laser Ballistic Gun Assault Rifle Ballistic Cannon Improved Light Cannon Build | -11 -10 -10 -9 -9 -9 -8 ------- Run | Yrd Mat Min Mat Min Exi Min Slots Evolved 2 | . . . 2 . . . Power . | . . . . . . . Propulsion . | . . . . . . . Utility 2 | . . . 2 . . . Weapon . | . . . . . . . Parts Attached 23 | 5 6 2 1 3 2 4 Power 5 | 1 . 2 1 1 . . Engine 5 | 1 . 2 1 1 . . Core . | . . . . . . . Reactor . | . . . . . . . Propulsion 6 | 2 1 . . 1 . 2 Treads 4 | 2 1 . . 1 . . Leg 2 | . . . . . . 2 Wheel . | . . . . . . . Hover . | . . . . . . . Flight . | . . . . . . . Utility 1 | . 1 . . . . . Device 1 | . 1 . . . . . Storage . | . . . . . . . Processor . | . . . . . . . Hackware . | . . . . . . . Protection . | . . . . . . . Artifact . | . . . . . . . Weapon 11 | 2 4 . . 1 2 2 Energy Gun 7 | 1 2 . . 1 2 1 Energy Cannon . | . . . . . . . Ballistic Gun 2 | 1 . . . . . 1 Ballistic Cannon 2 | . 2 . . . . . Launcher . | . . . . . . . Special Weapon . | . . . . . . . Impact Weapon . | . . . . . . . Slashing Weapon . | . . . . . . . Piercing Weapon . | . . . . . . . Special Melee Weapon . | . . . . . . . Unidentified Prototypes . | . . . . . . . Parts Lost 12 | . . 1 1 1 . 9 Power 3 | . . 1 1 . . 1 Propulsion 4 | . . . . . . 4 Utility 1 | . . . . . . 1 Weapon 4 | . . . . 1 . 3 Highest Loss Streak 5 | . . 1 1 1 . 5 To Critical Strikes . | . . . . . . . Average Slot Usage (%) 65 | . 77 83 65 66 66 49 Engine 11 | . 14 12 10 11 11 10 Treads 17 | . 28 28 22 22 22 . Leg 5 | . . . . . . 18 Device 7 | . 6 14 11 11 11 . Energy Gun 21 | . 17 28 22 22 22 19 Ballistic Cannon 1 | . 10 . . . . . Peak Build Rating 13 | 5 8 8 8 9 12 13 Average Rating 9 | 4 7 7 7 8 10 11 On Entrance 7 | . 5 8 8 8 9 12 Naked Turns 4 | . . . . . . 4 Heaviest Build 14 | 7 11 12 12 14 14 13 Greatest Support 40 | 40 40 40 40 40 40 25 Greatest Overweight (x) 3 | . . . . . . 3 Average Overweight (x) . | . . . . . . . Largest Inventory Capacity 5 | 5 5 5 5 5 5 5 Average Capacity 5 | 5 5 5 5 5 5 5 Most Carried 5 | . 5 5 5 5 5 5 Average Carried 4 | . 2 5 5 4 4 4 Final Capacity 5 | 5 5 5 5 5 5 5 Final Carried 5 | . 5 5 5 4 5 4 Class Distribution -------------------- 99% | Mutant Dominant Class ---------------- Mutant | -10/Materials Mutant | -10/Mines Mutant | -9/Materials Mutant | -9/Mines Mutant | -9/Exiles Mutant | -8/Mines Resources | -11 -10 -10 -9 -9 -9 -8 ----------- Run | Yrd Mat Min Mat Min Exi Min Matter Collected 467 | 176 113 88 10 30 . 50 Remotely . | . . . . . . . Salvage Created 828 | . 117 150 384 88 . 89 Parts 58 | . 14 3 21 13 . 7 Haulers Intercepted 1 | . 1 . . . . . Recyclers Shooed 3 | . 2 . . . . 1 Parts Field Recycled . | . . . . . . . Retrieved Matter . | . . . . . . . Parts Self-Destructed . | . . . . . . . Prevented . | . . . . . . . Kills | -11 -10 -10 -9 -9 -9 -8 ------- Run | Yrd Mat Min Mat Min Exi Min Combat Hostiles Destroyed 25 | . 5 3 4 6 . 7 Guns 22 | . 2 3 4 6 . 7 Cannons 3 | . 3 . . . . . Classes Destroyed 10 | . 4 1 5 . . . Worker 3 | . . . 3 . . . Builder 2 | . . . 2 . . . Hauler 1 | . 1 . . . . . Recycler 2 | . . . 2 . . . Operator 1 | . . . 1 . . . Watcher 2 | . 1 . 1 . . . Swarmer 13 | . 3 . . 4 . 6 Grunt 9 | . 2 2 3 1 . 1 Duelist 2 | . . . 1 1 . . Assembled 1 | . . 1 . . . . Best Kill Streak 8 | . 3 2 8 4 . 3 Combat Bots Only 4 | . 3 2 2 4 . 3 Max Kills in Single Turn 5 | . 1 1 5 2 . 2 Gunslinging 1 | . . . . 1 . 1 Exploded . | . . . . . . . Melee . | . . . . . . . Uniques/NPCs Destroyed . | . . . . . . . Combat | -11 -10 -10 -9 -9 -9 -8 -------- Run | Yrd Mat Min Mat Min Exi Min Hostile Shots Fired 151 | . 25 12 21 25 . 68 Missed 34 | . 3 3 5 9 . 14 Damage Taken 1640 | . 209 130 275 200 . 826 Core 453 | . 21 28 110 6 . 288 Absorbed by Shields . | . . . . . . . Core Remaining (%) 90 | 100 . 80 . . . . Volleys Fired 94 | . 17 9 16 10 7 35 Largest 2 | . 2 2 2 2 2 2 Hottest 130 | . 130 130 130 130 130 130 Shots Fired 173 | . 34 19 32 20 14 54 Gun 163 | . 24 19 32 20 14 54 Cannon 10 | . 10 . . . . . Launcher . | . . . . . . . Special . | . . . . . . . Kinetic 21 | . 10 . . . . 11 Thermal 152 | . 24 19 32 20 14 43 Explosive . | . . . . . . . Electromagnetic . | . . . . . . . Robot Hit Streak 12 | . 11 12 6 5 6 9 Robot Miss Streak 12 | . 9 5 7 12 5 9 Penetration Max . | . . . . . . . Secondary Targets 5 | . 1 . 1 2 . 1 Max Gunslinging Chain 1 | . 1 . 1 1 . 1 Shots Hit Robots 149 | . 24 15 29 19 14 48 Core Hits 174 | . 24 22 37 21 20 50 Critical Kills . | . . . . . . . Critical Parts Destroyed . | . . . . . . . Critical Strikes . | . . . . . . . Melee Attacks . | . . . . . . . Impact . | . . . . . . . Slashing . | . . . . . . . Piercing . | . . . . . . . Sneak Attacks . | . . . . . . . Combat Hostiles . | . . . . . . . Follow-up Attacks . | . . . . . . . Damage Inflicted 2372 | . 401 191 725 211 205 639 Guns 1882 | . 276 191 367 211 205 632 Cannons 123 | . 123 . . . . . Explosions 358 | . . . 358 . . . Melee . | . . . . . . . Ramming 9 | . 2 . . . . 7 Kinetic 189 | . 123 . . . . 66 Thermal 1816 | . 276 191 367 211 205 566 Explosive . | . . . . . . . Electromagnetic 358 | . . . 358 . . . Impact . | . . . . . . . Slashing . | . . . . . . . Piercing . | . . . . . . . Highest Corruption 1 | . 1 1 . . . . Average Corruption 1 | . 1 1 . . . . Corruption Purged . | . . . . . . . Corruption Blocked . | . . . . . . . Effects 5 | . 1 4 . . . . Matter Fused 2 | . 1 1 . . . . Heat Flow Errors 1 | . . 1 . . . . Data Loss (minor) 1 | . . 1 . . . . Misfires 1 | . . 1 . . . . Overload Shots . | . . . . . . . Overflow Damage 4 | . 4 . . . . . Projectiles 4 | . 4 . . . . . Explosions . | . . . . . . . Melee . | . . . . . . . Knockbacks 3 | . 3 . . . . . Impact . | . . . . . . . Kinetic 2 | . 2 . . . . . Secondary 1 | . 1 . . . . . Self-Inflicted Damage 38 | . . . 38 . . . Shots 2 | . . . 2 . . . Rammed 4 | . 1 . . . . 3 Targets Rammed 7 | . 1 . . . . 6 Kicked 3 | . . . . . . 3 Crushed . | . . . . . . . Highest Temperature 446 | . 201 117 214 183 99 446 Average Temperature 111 | . 58 43 85 84 41 195 Received Heat Transfer 573 | . 54 60 78 36 . 345 Effects 5 | . . . . . . 5 Shutdowns 1 | . . . . . . 1 Energy Bleed 2 | . . . . . . 2 Short Circuit 1 | . . . . . . 1 Damage (minor) 1 | . . . . . . 1 Siege Activations . | . . . . . . . Robots Corrupted . | . . . . . . . Combat Hostiles . | . . . . . . . Parts Fried 2 | . . . 2 . . . Impact Corruptions . | . . . . . . . Robots Melted . | . . . . . . . Combat Hostiles . | . . . . . . . Parts Melted 2 | . 2 . . . . . Heat Transferred 2260 | . 340 240 450 265 260 705 Parts Sabotaged . | . . . . . . . Parts Stolen . | . . . . . . . Parts Stripped . | . . . . . . . Power Chain Reactions . | . . . . . . . Alert | -11 -10 -10 -9 -9 -9 -8 ------- Run | Yrd Mat Min Mat Min Exi Min Peak Influence 231 | . 164 118 222 231 . 135 Initial 86 | . . 63 . 86 . . Average 79 | . 94 88 85 162 . 61 Maximum Alert Level 1 | . . . 1 1 . . Low Security (%) 96 | 100 100 100 89 71 . 100 Level 1 3 | . . . 10 28 . . Level 2 . | . . . . . . . Level 3 . | . . . . . . . Level 4 . | . . . . . . . Level 5 . | . . . . . . . High Security . | . . . . . . . Max Security . | . . . . . . . Squads Dispatched 1 | . . . 1 . . . Investigation . | . . . . . . . Extermination . | . . . . . . . Reinforcement 1 | . . . 1 . . . Assault . | . . . . . . . Garrison . | . . . . . . . Intercept . | . . . . . . . Searches Triggered . | . . . . . . . Construction Impeded . | . . . . . . . Haulers Reinforced . | . . . . . . . Active Scanning Responses . | . . . . . . . Cargo Convoy Interrupts . | . . . . . . . Stealth | -11 -10 -10 -9 -9 -9 -8 --------- Run | Yrd Mat Min Mat Min Exi Min Distress Signals . | . . . . . . . Communications Jammed . | . . . . . . . Distress Signals . | . . . . . . . Times Spotted 40 | . 8 3 8 6 . 15 Peak Tracking Total 4 | . 3 2 2 4 . 4 Tactical Retreats 1 | . . . . . . 1 Traps | -11 -10 -10 -9 -9 -9 -8 ------- Run | Yrd Mat Min Mat Min Exi Min Traps Triggered 1 | . 1 . . . . . Indirectly . | . . . . . . . Trap Hack Attempts . | . . . . . . . Triggered . | . . . . . . . Disarmed . | . . . . . . . Reprogrammed . | . . . . . . . Reused . | . . . . . . . Traps Extracted . | . . . . . . . Installed . | . . . . . . . Triggered . | . . . . . . . Machines | -11 -10 -10 -9 -9 -9 -8 ---------- Run | Yrd Mat Min Mat Min Exi Min Machines Disabled 5 | . . . 5 . . . Max in Single Turn 3 | . . . 3 . . . Machines Repaired . | . . . . . . . Machines Dismantled . | . . . . . . . Machines Sabotaged . | . . . . . . . Overloaded Fab Kills . | . . . . . . . Hacking | -11 -10 -10 -9 -9 -9 -8 --------- Run | Yrd Mat Min Mat Min Exi Min Machines Accessed 3 | . 1 . 1 . 1 . Terminals 2 | . 1 . 1 . . . Fabricators . | . . . . . . . Repair Stations . | . . . . . . . Recycling Units . | . . . . . . . Scanalyzers . | . . . . . . . Garrison Access . | . . . . . . . Total Hacks 5 | . 1 . 3 . 1 . Successful 2 | . . . 1 . 1 . Failed 3 | . 1 . 2 . . . Catastrophic 2 | . 1 . 1 . . . Database Lockouts . | . . . . . . . Manual 5 | . 1 . 3 . 1 . Terminals 4 | . 1 . 3 . . . Fabricators . | . . . . . . . Repair Stations . | . . . . . . . Recycling Units . | . . . . . . . Scanalyzers . | . . . . . . . Garrison Access . | . . . . . . . Terminal Hacks 2 | . . . 1 . 1 . Branch Access Points 1 | . . . 1 . . . Derelict Proto ID Bank 1 | . . . . . 1 . Fabricator Hacks . | . . . . . . . Repair Station Hacks . | . . . . . . . Recycling Unit Hacks . | . . . . . . . Scanalyzer . | . . . . . . . Garrison Access Hacks . | . . . . . . . Unauthorized Hacks . | . . . . . . . Terminals . | . . . . . . . Fabricators . | . . . . . . . Repair Stations . | . . . . . . . Recycling Units . | . . . . . . . Scanalyzers . | . . . . . . . Garrison Access . | . . . . . . . Data Cores Recovered . | . . . . . . . Used . | . . . . . . . Hacking Detections 2 | . 1 . 1 . . . Full Trace Events . | . . . . . . . Feedback Events . | . . . . . . . Feedback Blocked . | . . . . . . . Robot Schematics Acquired . | . . . . . . . Robots Built . | . . . . . . . Authchips . | . . . . . . . Time . | . . . . . . . Total Robot Build Rating . | . . . . . . . Part Schematics Acquired . | . . . . . . . Parts Built . | . . . . . . . Authchips . | . . . . . . . Time . | . . . . . . . Total Part Build Rating . | . . . . . . . Parts Repaired . | . . . . . . . Time . | . . . . . . . Parts Recycled . | . . . . . . . Recycled Matter . | . . . . . . . Retrieved Matter . | . . . . . . . Retrieved Components . | . . . . . . . Parts Scanalyzed . | . . . . . . . Part Schematics Acquired . | . . . . . . . Parts Damaged . | . . . . . . . Bothacking | -11 -10 -10 -9 -9 -9 -8 ------------ Run | Yrd Mat Min Mat Min Exi Min Used RIF Installer . | . . . . . . . Robots Hacked . | . . . . . . . Non-combat . | . . . . . . . Combat . | . . . . . . . Robot Hacks Applied . | . . . . . . . Relay Couplers Released . | . . . . . . . Fabnet Peak Effective % . | . . . . . . . Robots Rewired 4 | . . . . . 4 . Allies Hacked . | . . . . . . . Hacks Repelled . | . . . . . . . Allies | -11 -10 -10 -9 -9 -9 -8 -------- Run | Yrd Mat Min Mat Min Exi Min Total Allies 4 | . . . . . 4 . Largest Group 4 | . . . . . 4 2 Highest-Rated Group 45 | . . . . . 45 16 Highest-Rated Ally 21 | . . . . . 21 8 Total Orders . | . . . . . . . Ally Attacks 18 | . . . . . . 18 Total Damage 192 | . . . . . . 192 Kills 3 | . . . . . . 3 Allies Corrupted . | . . . . . . . Allies Melted . | . . . . . . . Intel | -11 -10 -10 -9 -9 -9 -8 ------- Run | Yrd Mat Min Mat Min Exi Min Robot Analysis Total . | . . . . . . . Derelict Logs Recovered . | . . . . . . . Drone Launches . | . . . . . . . Drone Recoveries . | . . . . . . . Exploration | -11 -10 -10 -9 -9 -9 -8 ------------- Run | Yrd Mat Min Mat Min Exi Min Turns Passed 2701 | 83 337 501 261 128 594 797 Spaces Moved 1222 | 50 170 170 131 59 343 299 Core 33 | 3 . . . . . 30 Treads 920 | 47 170 170 131 59 343 . Legs 269 | . . . . . . 269 Wheels . | . . . . . . . Hover . | . . . . . . . Flight . | . . . . . . . Fastest Speed 50 | 50 160 160 160 160 160 50 Average Speed 151 | 153 160 160 160 160 160 126 Slowest Speed 200 | 160 160 160 160 160 160 200 Overloaded Moves . | . . . . . . . Propulsion Burnouts . | . . . . . . . Robots Hopped . | . . . . . . . Cave-ins Triggered . | . . . . . . . Exploration Rate (%) 37 | 3 38 54 20 13 69 66 Regions Visited 6 Branch Regions 4 Pre-discovered Areas . | . . . . . . . Known Exits Taken 1 | . . . 1 . . . Unknown Exits Taken 5 | 1 1 1 . 1 1 . Scrap Searched 4 | . . 3 . . . 1 Spaces Dug . | . . . . . . . Terrain Destroyed . | . . . . . . . Melee . | . . . . . . . Projectile . | . . . . . . . AOE . | . . . . . . . Terrain Rammed . | . . . . . . . Walls Destroyed . | . . . . . . . Machines Disabled . | . . . . . . . Actions | -11 -10 -10 -9 -9 -9 -8 --------- Run | Yrd Mat Min Mat Min Exi Min Total 1897 | 54 199 381 150 72 376 665 Wait 524 | . . 200 3 . . 321 Move 1216 | 49 169 169 130 58 342 299 Hop . | . . . . . . . Pick Up 5 | . 4 . . . 1 . Fast Attach 15 | 5 3 1 1 . 2 3 Attach 2 | . . . . 1 . 1 Detach . | . . . . . . . Swap 6 | . 3 1 . 2 . . Drop 9 | . 2 1 . 1 5 . Fire 94 | . 17 9 16 10 7 35 Melee . | . . . . . . . Ram 3 | . . . . . . 3 Kick 3 | . . . . . . 3 Crush 1 | . 1 . . . . . Escape Stasis . | . . . . . . . Rewire 19 | . . . . . 19 . Trap . | . . . . . . . Miscellaneous . | . . . . . . . Route ------- -11/Scrapyard -10/Materials (discovered 2 exits: *Mat / [*Min]) -10/Mines -9/Materials (discovered 2 exits: *Min x2) -9/Mines -9/Exiles -8/Mines History --------- Turn | Location | Event 8 | -11/Scrapyard | Discovered new exit (range 14) 84 | -11/Scrapyard | Entered Materials 300 | -10/Materials | Build established: Mutant 329 | -10/Materials | Discovered new exit (range 16) 399 | -10/Materials | Discovered new exit (range 8) 421 | -10/Materials | Entered Mines 877 | -10/Mines | Assembled infested the area 889 | -10/Mines | Discovered new exit (range 11) 922 | -10/Mines | Entered Materials 922 | -9/Materials | Evolved 2 slots: Utility x2 929 | -9/Materials | Identified exit to Mines 1183 | -9/Materials | Entered Mines 1301 | -9/Mines | Deemed a non-threat by the Exiles lab entrance 1303 | -9/Mines | Discovered new exit (range 5) 1311 | -9/Mines | Entered Exiles 1311 | -9/Exiles | Found Exiles lab destroyed 1642 | -9/Exiles | Opened EX-Vault 1652 | -9/Exiles | Found XL Autogun Array 1892 | -9/Exiles | Discovered new exit (range 10) 1905 | -9/Exiles | Entered Mines 1905 | -8/Mines | Accompanied by 4 allies 1952 | -8/Mines | Lost 4 parts (2n1u1w) 2640 | -8/Mines | Core integrity fell below 50% 2689 | -8/Mines | Core integrity fell below 20% 2702 | -8/Mines | Destroyed by G-50 Soldier with Heavy Laser Last Messages --------------- Kicked U-05 Engineer out of the way. Kicked R-06 Scavenger. K-01 Serf cleans the Pressure Siphon. S-10 Pest destroyed. Aluminum Leg destroyed. G-47 Trooper destroyed. Spread Laser destroyed. Overheating: Energy bleed (-43). Carbon-fiber Leg destroyed. Imp. Ion Engine broken. Overheating: Short circuit. Overheating: Broken Imp. Ion Engine damaged (-1). Broken Imp. Ion Engine destroyed. Spread Laser destroyed. Slammed into G-50 Soldier. Destabilizing: Core damaged (-12). Slammed into G-50 Soldier. Acquired Lgt. Assault Rifle. Critical hit (Burn: +37). Acquired 20 matter. Map ----- +----------------------------------------------------+ | ??????????# #???????# #????????????????? | | ???????????# ##??????# ##???????????????? | | ???????????# #####??# #???????????????? | | ???????????# #### #???????????????? | | ??????????## ## ##???##??????????? | | ?????????## ##?## #??????????? | | ????????## ### #??????????? | | ???????## #??????????? | | ???????# ### #??????????? | | ???????# """ ##?## ##??????????? | | ???????## """ ##???# ##???????????? | | ????????# """ #????# ##????????????? | | ????????# ##????# #?????????????? | | ????????# #?????## ### ##?????????????? | | ???????## ##?????####?? ##??????????????? | | ???????# #??????????? ##??????????????? | | ???????# #??????????? ##?????????????? | | ???????# ##??????????? #???##????????? | | ???????# ##???????????? ### ##???????? | | ???????## #????????????? ###?????? | | ????????### #???????????## ????? | | ??????????# #???????????# ????? | | ??????????# ##########?## #?????? | | ??????????# *### #?????? | | ??????????###########%g = #??????? | | ????????????????????#@##% ##??????????? | | ????????????????????# ### ##???????????? | | ????????????????????# #?## ##????????????? | | ????????????????????# #??## #?????????????? | | ???????????????????? ????# #?????????????? | | ???????????????????? ?????# ##?????????????? | | ???????????????????? ??????##??????????????? | | ???????????????????? ??????????????????????? | | ????????????????????###??????????????????????? | | ?????????????????????????????????????????????? | | | | | | | | | | | | | | | | | | | | | | | | | | | | | | | +----------------------------------------------------+ Best States ------------- Heat Dissipation 38 Energy Generation 12 Energy Capacity 265 Matter Stores 300 Matter Capacity 300 Sight Range 16 Terrain Scan Density 10 Evasion (%) 55 Recoil Reduction 2 Item Schematics ----------------- None Robot Schematics ------------------ None Fabricated ------------ Nothing Alien Tech Used ----------------- None Achievements -------------- None Challenges ------------ None Game ------ Seed TerrabombMobileDoomcannon Manual? 0 Play Time 00:12:14 Cumulative 71.6 hours Start 2024.08.10 @ 14:36:07 End 2024.08.10 @ 14:46:10 Sessions 1 Manual Loads 0 Difficulty Rogue Special Mode None Game No. 174 Rogue 99 Adventurer 75 Explorer 0 Win Type - Total 0 Types 0/0/0/0/0/0/0/0/0 Lore% 40 Gallery% 42 Achievement% 35 Wizard Run 0 Options --------- Layout 0 ASCII 0 Keyboard 0 Movement Mouse Keybinds 0 Fullscreen 1 Font 24/Smallcaps Map View 76x50 Zoom Use 0% Tactical HUD 0 Map Filters NONE Filters NONE Steam 1 RUN: d1bb396c-97b7-4a3f-a9dc-3c0b3fc9fd45